Workbook

Sheet AST
A1: NOTICE: This document is an example only. It must be revised to reflect your lab’s specific processes and/or specific protocol requirements.
A2: Approved and current. Effective starting 10-Aug-2023. Last reviewed on 10-Aug-2023. RDP 500 (version 1.0). Reference Range Verification (Chemistry)_Example. Page 1 of 10
A3: Reference Interval Analysis
A6: Method being evaluated: | D6: COBAS c311 | I6: Date: | J6: 2023-07-19
B7: Analyte | D7: AST
A8: Proposed Reference Range: | D8: 0 | E8: to | F8: 38 | H8: Units: | I8: U/L
F10: 14 | G10: 11 | H10: 18 | I10: 13 | J10: 26
F11: 17 | G11: 17 | H11: 19 | I11: 17 | J11: 17
F12: 18 | G12: 25 | H12: 16 | I12: 21 | J12: 17
F13: 19 | G13: 17 | H13: 12 | I13: 13 | J13: 17
A15: =I8 -> U/L | B15: Frequency | C15: %
A16: ="<"&D8 -> <0 | B16: =FREQUENCY(F10:J13,G17:G25) -> 0 | C16: =B16/COUNT($F$10:$J$13) -> 0 | G16: =I8 -> U/L
A17: =D8&"-"&G18 -> 0-7.6 | B17: 0 | C17: =B17/COUNT($F$10:$J$13) -> 0 | G17: =D8-0.0001 -> -0.0001 | H17: =F8-D8 -> 38
A18: =G18&"-"&G19 -> 7.6-11.4 | B18: 1 | C18: =B18/COUNT($F$10:$J$13) -> 0.05 | G18: =D8+(0.2*H17) -> 7.6
A19: =G19&"-"&G20 -> 11.4-15.2 | B19: 4 | C19: =B19/COUNT($F$10:$J$13) -> 0.2 | G19: =D8+(0.3*H17) -> 11.4
A20: =G20&"-"&G21 -> 15.2-19 | B20: 12 | C20: =B20/COUNT($F$10:$J$13) -> 0.6 | G20: =D8+(0.4*H17) -> 15.2
A21: =G21&"-"&G22 -> 19-26.6 | B21: 3 | C21: =B21/COUNT($F$10:$J$13) -> 0.15 | G21: =D8+(0.5*H17) -> 19
A22: =G22&"-"&G23 -> 26.6-30.4 | B22: 0 | C22: =B22/COUNT($F$10:$J$13) -> 0 | G22: =D8+(0.7*H17) -> 26.6
A23: =G23&"-"&G24 -> 30.4-34.2 | B23: 0 | C23: =B23/COUNT($F$10:$J$13) -> 0 | G23: =D8+(0.8*H17) -> 30.4
A24: =G24&"-"&G25 -> 34.2-38 | B24: 0 | C24: =B24/COUNT($F$10:$J$13) -> 0 | G24: =D8+(0.9*H17) -> 34.2
A25: =">"&G25 -> >38 | B25: 0 | C25: =B25/COUNT($F$10:$J$13) -> 0 | G25: =F8 -> 38
A27: Mean: | B27: =AVERAGE(F10:J13) -> 17.2
A28: SD: | B28: =STDEV(F10:J13) -> 3.79195825
A29: Median: | B29: =MEDIAN(F10:J13) -> 17
A30: Range: | B30: =B34&"-"&C34 -> 11-26
A31: Obs Outside: | B31: =C16+C25 -> 0
A32: Grade: | B32: =IF(C16+C25>0.1,"Unacceptable","Acceptable") -> Acceptable
B34: =MIN(F10:J13) -> 11 | C34: =MAX(F10:J13) -> 26

Sheet GLUC
A1: NOTICE: This document is an example only. It must be revised to reflect your lab’s specific processes and/or specific protocol requirements.
A2: Approved and current. Effective starting 10-Aug-2023. Last reviewed on 10-Aug-2023. RDP 500 (version 1.0). Reference Range Verification (Chemistry)_Example. Page 2 of 10
A3: Reference Interval Analysis
A6: Method being evaluated: | D6: COBAS c311 | I6: Date: | J6: 2023-07-19
B7: Analyte | D7: GLUC
A8: Proposed Reference Range: | D8: 75 | E8: to | F8: 110 | H8: Units: | I8: mg/dL
F10: 88 | G10: 74 | H10: 92 | I10: 81 | J10: 90
F11: 88 | G11: 93 | H11: 89 | I11: 99 | J11: 84
F12: 99 | G12: 101 | H12: 90 | I12: 91 | J12: 91
F13: 88 | G13: 89 | H13: 82 | I13: 86 | J13: 98
A15: =I8 -> mg/dL | B15: Frequency | C15: %
A16: ="<"&D8 -> <75 | B16: =FREQUENCY(F10:J13,G17:G25) -> 1 | C16: =B16/COUNT($F$10:$J$13) -> 0.05 | G16: =I8 -> mg/dL
A17: =D8&"-"&G18 -> 75-82 | B17: 2 | C17: =B17/COUNT($F$10:$J$13) -> 0.1 | G17: =D8-0.0001 -> 74.9999 | H17: =F8-D8 -> 35
A18: =G18&"-"&G19 -> 82-85.5 | B18: 1 | C18: =B18/COUNT($F$10:$J$13) -> 0.05 | G18: =D8+(0.2*H17) -> 82
A19: =G19&"-"&G20 -> 85.5-89 | B19: 6 | C19: =B19/COUNT($F$10:$J$13) -> 0.3 | G19: =D8+(0.3*H17) -> 85.5
A20: =G20&"-"&G21 -> 89-92.5 | B20: 5 | C20: =B20/COUNT($F$10:$J$13) -> 0.25 | G20: =D8+(0.4*H17) -> 89
A21: =G21&"-"&G22 -> 92.5-99.5 | B21: 4 | C21: =B21/COUNT($F$10:$J$13) -> 0.2 | G21: =D8+(0.5*H17) -> 92.5
A22: =G22&"-"&G23 -> 99.5-103 | B22: 1 | C22: =B22/COUNT($F$10:$J$13) -> 0.05 | G22: =D8+(0.7*H17) -> 99.5
A23: =G23&"-"&G24 -> 103-106.5 | B23: 0 | C23: =B23/COUNT($F$10:$J$13) -> 0 | G23: =D8+(0.8*H17) -> 103
A24: =G24&"-"&G25 -> 106.5-110 | B24: 0 | C24: =B24/COUNT($F$10:$J$13) -> 0 | G24: =D8+(0.9*H17) -> 106.5
A25: =">"&G25 -> >110 | B25: 0 | C25: =B25/COUNT($F$10:$J$13) -> 0 | G25: =F8 -> 110
A27: Mean: | B27: =AVERAGE(F10:J13) -> 89.65
A28: SD: | B28: =STDEV(F10:J13) -> 6.595652476
A29: Median: | B29: =MEDIAN(F10:J13) -> 89.5
A30: Range: | B30: =B34&"-"&C34 -> 74-101
A31: Obs Outside: | B31: =C16+C25 -> 0.05
A32: Grade: | B32: =IF(C16+C25>0.1,"Unacceptable","Acceptable") -> Acceptable
B34: =MIN(F10:J13) -> 74 | C34: =MAX(F10:J13) -> 101

Sheet TBili
A1: NOTICE: This document is an example only. It must be revised to reflect your lab’s specific processes and/or specific protocol requirements.
A2: Approved and current. Effective starting 10-Aug-2023. Last reviewed on 10-Aug-2023. RDP 500 (version 1.0). Reference Range Verification (Chemistry)_Example. Page 3 of 10
A3: Reference Interval Analysis
A6: Method being evaluated: | D6: COBAS c311 | I6: Date: | J6: 2023-07-19
B7: Analyte | D7: BILI Total
A8: Proposed Reference Range: | D8: 0 | E8: to | F8: 1 | H8: Units: | I8: mg/dL
F10: 0.29 | G10: 0.69 | H10: 0.66 | I10: 0.96 | J10: 0.51
F11: 0.55 | G11: 0.59 | H11: 0.88 | I11: 0.74 | J11: 1.01
F12: 1.09 | G12: 0.37 | H12: 0.97 | I12: 0.59 | J12: 0.71
F13: 0.79 | G13: 0.78 | H13: 0.29 | I13: 0.47 | J13: 0.52
A15: =I8 -> mg/dL | B15: Frequency | C15: %
A16: ="<"&D8 -> <0 | B16: =FREQUENCY(F10:J13,G17:G25) -> 0 | C16: =B16/COUNT($F$10:$J$13) -> 0 | G16: =I8 -> mg/dL
A17: =D8&"-"&G18 -> 0-0.2 | B17: 0 | C17: =B17/COUNT($F$10:$J$13) -> 0 | G17: =D8-0.0001 -> -0.0001 | H17: =F8-D8 -> 1
A18: =G18&"-"&G19 -> 0.2-0.3 | B18: 2 | C18: =B18/COUNT($F$10:$J$13) -> 0.1 | G18: =D8+(0.2*H17) -> 0.2
A19: =G19&"-"&G20 -> 0.3-0.4 | B19: 1 | C19: =B19/COUNT($F$10:$J$13) -> 0.05 | G19: =D8+(0.3*H17) -> 0.3
A20: =G20&"-"&G21 -> 0.4-0.5 | B20: 1 | C20: =B20/COUNT($F$10:$J$13) -> 0.05 | G20: =D8+(0.4*H17) -> 0.4
A21: =G21&"-"&G22 -> 0.5-0.7 | B21: 7 | C21: =B21/COUNT($F$10:$J$13) -> 0.35 | G21: =D8+(0.5*H17) -> 0.5
A22: =G22&"-"&G23 -> 0.7-0.8 | B22: 4 | C22: =B22/COUNT($F$10:$J$13) -> 0.2 | G22: =D8+(0.7*H17) -> 0.7
A23: =G23&"-"&G24 -> 0.8-0.9 | B23: 1 | C23: =B23/COUNT($F$10:$J$13) -> 0.05 | G23: =D8+(0.8*H17) -> 0.8
A24: =G24&"-"&G25 -> 0.9-1 | B24: 2 | C24: =B24/COUNT($F$10:$J$13) -> 0.1 | G24: =D8+(0.9*H17) -> 0.9
A25: =">"&G25 -> >1 | B25: 2 | C25: =B25/COUNT($F$10:$J$13) -> 0.1 | G25: =F8 -> 1
A27: Mean: | B27: =AVERAGE(F10:J13) -> 0.673
A28: SD: | B28: =STDEV(F10:J13) -> 0.2336912043
A29: Median: | B29: =MEDIAN(F10:J13) -> 0.675
A30: Range: | B30: =B34&"-"&C34 -> 0.29-1.09
A31: Obs Outside: | B31: =C16+C25 -> 0.1
A32: Grade: | B32: =IF(C16+C25>0.1,"Unacceptable","Acceptable") -> Acceptable
B34: =MIN(F10:J13) -> 0.29 | C34: =MAX(F10:J13) -> 1.09

Sheet CREA
A1: NOTICE: This document is an example only. It must be revised to reflect your lab’s specific processes and/or specific protocol requirements.
A2: Approved and current. Effective starting 10-Aug-2023. Last reviewed on 10-Aug-2023. RDP 500 (version 1.0). Reference Range Verification (Chemistry)_Example. Page 4 of 10
A3: Reference Interval Analysis
A6: Method being evaluated: | D6: COBAS c311 | I6: Date: | J6: 2023-07-19
B7: Analyte | D7: Creatinine
A8: Proposed Reference Range: | D8: 0.5 | E8: to | F8: 1.2 | H8: Units: | I8: mg/dL
F10: 0.65 | G10: 0.88 | H10: 0.75 | I10: 0.59 | J10: 0.78
F11: 0.66 | G11: 0.94 | H11: 1.01 | I11: 0.74 | J11: 0.64
F12: 0.71 | G12: 1.11 | H12: 0.87 | I12: 0.56 | J12: 0.98
F13: 0.88 | G13: 0.86 | H13: 0.57 | I13: 0.76 | J13: 0.6
A15: =I8 -> mg/dL | B15: Frequency | C15: %
A16: ="<"&D8 -> <0.5 | B16: =FREQUENCY(F10:J13,G17:G25) -> 0 | C16: =B16/COUNT($F$10:$J$13) -> 0 | G16: =I8 -> mg/dL
A17: =D8&"-"&G18 -> 0.5-0.64 | B17: 5 | C17: =B17/COUNT($F$10:$J$13) -> 0.25 | G17: =D8-0.0001 -> 0.4999 | H17: =F8-D8 -> 0.7
A18: =G18&"-"&G19 -> 0.64-0.71 | B18: 3 | C18: =B18/COUNT($F$10:$J$13) -> 0.15 | G18: =D8+(0.2*H17) -> 0.64
A19: =G19&"-"&G20 -> 0.71-0.78 | B19: 4 | C19: =B19/COUNT($F$10:$J$13) -> 0.2 | G19: =D8+(0.3*H17) -> 0.71
A20: =G20&"-"&G21 -> 0.78-0.85 | B20: 0 | C20: =B20/COUNT($F$10:$J$13) -> 0 | G20: =D8+(0.4*H17) -> 0.78
A21: =G21&"-"&G22 -> 0.85-0.99 | B21: 6 | C21: =B21/COUNT($F$10:$J$13) -> 0.3 | G21: =D8+(0.5*H17) -> 0.85
A22: =G22&"-"&G23 -> 0.99-1.06 | B22: 1 | C22: =B22/COUNT($F$10:$J$13) -> 0.05 | G22: =D8+(0.7*H17) -> 0.99
A23: =G23&"-"&G24 -> 1.06-1.13 | B23: 1 | C23: =B23/COUNT($F$10:$J$13) -> 0.05 | G23: =D8+(0.8*H17) -> 1.06
A24: =G24&"-"&G25 -> 1.13-1.2 | B24: 0 | C24: =B24/COUNT($F$10:$J$13) -> 0 | G24: =D8+(0.9*H17) -> 1.13
A25: =">"&G25 -> >1.2 | B25: 0 | C25: =B25/COUNT($F$10:$J$13) -> 0 | G25: =F8 -> 1.2
A27: Mean: | B27: =AVERAGE(F10:J13) -> 0.777
A28: SD: | B28: =STDEV(F10:J13) -> 0.1591788137
A29: Median: | B29: =MEDIAN(F10:J13) -> 0.755
A30: Range: | B30: =B34&"-"&C34 -> 0.56-1.11
A31: Obs Outside: | B31: =C16+C25 -> 0
A32: Grade: | B32: =IF(C16+C25>0.1,"Unacceptable","Acceptable") -> Acceptable
B34: =MIN(F10:J13) -> 0.56 | C34: =MAX(F10:J13) -> 1.11

Sheet ALT
A1: NOTICE: This document is an example only. It must be revised to reflect your lab’s specific processes and/or specific protocol requirements.
A2: Approved and current. Effective starting 10-Aug-2023. Last reviewed on 10-Aug-2023. RDP 500 (version 1.0). Reference Range Verification (Chemistry)_Example. Page 5 of 10
A3: Reference Interval Analysis
A6: Method being evaluated: | D6: COBAS c311 | I6: Date: | J6: 2023-07-19
B7: Analyte | D7: ALT
A8: Proposed Reference Range: | D8: 0 | E8: to | F8: 41 | H8: Units: | I8: U/L
F10: 12 | G10: 14 | H10: 17 | I10: 12 | J10: 38
F11: 14 | G11: 23 | H11: 32 | I11: 18 | J11: 5
F12: 24 | G12: 24 | H12: 10 | I12: 16 | J12: 14
F13: 20 | G13: 18 | H13: 11 | I13: 14 | J13: 12
A15: =I8 -> U/L | B15: Frequency | C15: %
A16: ="<"&D8 -> <0 | B16: =FREQUENCY(F10:J13,G17:G25) -> 0 | C16: =B16/COUNT($F$10:$J$13) -> 0 | G16: =I8 -> U/L
A17: =D8&"-"&G18 -> 0-8.2 | B17: 1 | C17: =B17/COUNT($F$10:$J$13) -> 0.05 | G17: =D8-0.0001 -> -0.0001 | H17: =F8-D8 -> 41
A18: =G18&"-"&G19 -> 8.2-12.3 | B18: 5 | C18: =B18/COUNT($F$10:$J$13) -> 0.25 | G18: =D8+(0.2*H17) -> 8.2
A19: =G19&"-"&G20 -> 12.3-16.4 | B19: 5 | C19: =B19/COUNT($F$10:$J$13) -> 0.25 | G19: =D8+(0.3*H17) -> 12.3
A20: =G20&"-"&G21 -> 16.4-20.5 | B20: 4 | C20: =B20/COUNT($F$10:$J$13) -> 0.2 | G20: =D8+(0.4*H17) -> 16.4
A21: =G21&"-"&G22 -> 20.5-28.7 | B21: 3 | C21: =B21/COUNT($F$10:$J$13) -> 0.15 | G21: =D8+(0.5*H17) -> 20.5
A22: =G22&"-"&G23 -> 28.7-32.8 | B22: 1 | C22: =B22/COUNT($F$10:$J$13) -> 0.05 | G22: =D8+(0.7*H17) -> 28.7
A23: =G23&"-"&G24 -> 32.8-36.9 | B23: 0 | C23: =B23/COUNT($F$10:$J$13) -> 0 | G23: =D8+(0.8*H17) -> 32.8
A24: =G24&"-"&G25 -> 36.9-41 | B24: 1 | C24: =B24/COUNT($F$10:$J$13) -> 0.05 | G24: =D8+(0.9*H17) -> 36.9
A25: =">"&G25 -> >41 | B25: 0 | C25: =B25/COUNT($F$10:$J$13) -> 0 | G25: =F8 -> 41
A27: Mean: | B27: =AVERAGE(F10:J13) -> 17.4
A28: SD: | B28: =STDEV(F10:J13) -> 7.775805932
A29: Median: | B29: =MEDIAN(F10:J13) -> 15
A30: Range: | B30: =B34&"-"&C34 -> 5-38
A31: Obs Outside: | B31: =C16+C25 -> 0
A32: Grade: | B32: =IF(C16+C25>0.1,"Unacceptable","Acceptable") -> Acceptable
B34: =MIN(F10:J13) -> 5 | C34: =MAX(F10:J13) -> 38

Sheet PHOS
A1: NOTICE: This document is an example only. It must be revised to reflect your lab’s specific processes and/or specific protocol requirements.
A2: Approved and current. Effective starting 10-Aug-2023. Last reviewed on 10-Aug-2023. RDP 500 (version 1.0). Reference Range Verification (Chemistry)_Example. Page 6 of 10
A3: Reference Interval Analysis
A6: Method being evaluated: | D6: COBAS c311 | I6: Date: | J6: 2023-07-19
B7: Analyte | D7: PHOS
A8: Proposed Reference Range: | D8: 2.7 | E8: to | F8: 4.5 | H8: Units: | I8: U/L
F10: 5.3 | G10: 4.5 | H10: 3.2 | I10: 2.7 | J10: 3.7
F11: 4.1 | G11: 3.5 | H11: 3.8 | I11: 3.5 | J11: 3.8
F12: 3.3 | G12: 2.9 | H12: 3.8 | I12: 4.1 | J12: 3.6
F13: 3.7 | G13: 3.7 | H13: 3.7 | I13: 3.1 | J13: 4.1
A15: =I8 -> U/L | B15: Frequency | C15: %
A16: ="<"&D8 -> <2.7 | B16: =FREQUENCY(F10:J13,G17:G25) -> 0 | C16: =B16/COUNT($F$10:$J$13) -> 0 | G16: =I8 -> U/L
A17: =D8&"-"&G18 -> 2.7-3.06 | B17: 2 | C17: =B17/COUNT($F$10:$J$13) -> 0.1 | G17: =D8-0.0001 -> 2.6999 | H17: =F8-D8 -> 1.8
A18: =G18&"-"&G19 -> 3.06-3.24 | B18: 2 | C18: =B18/COUNT($F$10:$J$13) -> 0.1 | G18: =D8+(0.2*H17) -> 3.06
A19: =G19&"-"&G20 -> 3.24-3.42 | B19: 1 | C19: =B19/COUNT($F$10:$J$13) -> 0.05 | G19: =D8+(0.3*H17) -> 3.24
A20: =G20&"-"&G21 -> 3.42-3.6 | B20: 3 | C20: =B20/COUNT($F$10:$J$13) -> 0.15 | G20: =D8+(0.4*H17) -> 3.42
A21: =G21&"-"&G22 -> 3.6-3.96 | B21: 7 | C21: =B21/COUNT($F$10:$J$13) -> 0.35 | G21: =D8+(0.5*H17) -> 3.6
A22: =G22&"-"&G23 -> 3.96-4.14 | B22: 3 | C22: =B22/COUNT($F$10:$J$13) -> 0.15 | G22: =D8+(0.7*H17) -> 3.96
A23: =G23&"-"&G24 -> 4.14-4.32 | B23: 0 | C23: =B23/COUNT($F$10:$J$13) -> 0 | G23: =D8+(0.8*H17) -> 4.14
A24: =G24&"-"&G25 -> 4.32-4.5 | B24: 1 | C24: =B24/COUNT($F$10:$J$13) -> 0.05 | G24: =D8+(0.9*H17) -> 4.32
A25: =">"&G25 -> >4.5 | B25: 1 | C25: =B25/COUNT($F$10:$J$13) -> 0.05 | G25: =F8 -> 4.5
A27: Mean: | B27: =AVERAGE(F10:J13) -> 3.705
A28: SD: | B28: =STDEV(F10:J13) -> 0.571678047
A29: Median: | B29: =MEDIAN(F10:J13) -> 3.7
A30: Range: | B30: =B34&"-"&C34 -> 2.7-5.3
A31: Obs Outside: | B31: =C16+C25 -> 0.05
A32: Grade: | B32: =IF(C16+C25>0.1,"Unacceptable","Acceptable") -> Acceptable
B34: =MIN(F10:J13) -> 2.7 | C34: =MAX(F10:J13) -> 5.3

Sheet AMYL
A1: NOTICE: This document is an example only. It must be revised to reflect your lab’s specific processes and/or specific protocol requirements.
A2: Approved and current. Effective starting 10-Aug-2023. Last reviewed on 10-Aug-2023. RDP 500 (version 1.0). Reference Range Verification (Chemistry)_Example. Page 7 of 10
A3: Reference Interval Analysis
A6: Method being evaluated: | D6: COBAS c311 | I6: Date: | J6: 2023-07-19
B7: Analyte | D7: AMYL
A8: Proposed Reference Range: | D8: 28 | E8: to | F8: 100 | H8: Units: | I8: U/L
F10: 63 | G10: 104 | H10: 58 | I10: 59 | J10: 54
F11: 60 | G11: 72 | H11: 47 | I11: 63 | J11: 60
F12: 97 | G12: 112 | H12: 73 | I12: 53 | J12: 38
F13: 71 | G13: 42 | H13: 57 | I13: 74 | J13: 87
A15: =I8 -> U/L | B15: Frequency | C15: %
A16: ="<"&D8 -> <28 | B16: =FREQUENCY(F10:J13,G17:G25) -> 0 | C16: =B16/COUNT($F$10:$J$13) -> 0 | G16: =I8 -> U/L
A17: =D8&"-"&G18 -> 28-42.4 | B17: 2 | C17: =B17/COUNT($F$10:$J$13) -> 0.1 | G17: =D8-0.0001 -> 27.9999 | H17: =F8-D8 -> 72
A18: =G18&"-"&G19 -> 42.4-49.6 | B18: 1 | C18: =B18/COUNT($F$10:$J$13) -> 0.05 | G18: =D8+(0.2*H17) -> 42.4
A19: =G19&"-"&G20 -> 49.6-56.8 | B19: 2 | C19: =B19/COUNT($F$10:$J$13) -> 0.1 | G19: =D8+(0.3*H17) -> 49.6
A20: =G20&"-"&G21 -> 56.8-64 | B20: 7 | C20: =B20/COUNT($F$10:$J$13) -> 0.35 | G20: =D8+(0.4*H17) -> 56.8
A21: =G21&"-"&G22 -> 64-78.4 | B21: 4 | C21: =B21/COUNT($F$10:$J$13) -> 0.2 | G21: =D8+(0.5*H17) -> 64
A22: =G22&"-"&G23 -> 78.4-85.6 | B22: 0 | C22: =B22/COUNT($F$10:$J$13) -> 0 | G22: =D8+(0.7*H17) -> 78.4
A23: =G23&"-"&G24 -> 85.6-92.8 | B23: 1 | C23: =B23/COUNT($F$10:$J$13) -> 0.05 | G23: =D8+(0.8*H17) -> 85.6
A24: =G24&"-"&G25 -> 92.8-100 | B24: 1 | C24: =B24/COUNT($F$10:$J$13) -> 0.05 | G24: =D8+(0.9*H17) -> 92.8
A25: =">"&G25 -> >100 | B25: 2 | C25: =B25/COUNT($F$10:$J$13) -> 0.1 | G25: =F8 -> 100
A27: Mean: | B27: =AVERAGE(F10:J13) -> 67.2
A28: SD: | B28: =STDEV(F10:J13) -> 19.76866207
A29: Median: | B29: =MEDIAN(F10:J13) -> 61.5
A30: Range: | B30: =B34&"-"&C34 -> 38-112
A31: Obs Outside: | B31: =C16+C25 -> 0.1
A32: Grade: | B32: =IF(C16+C25>0.1,"Unacceptable","Acceptable") -> Acceptable
B34: =MIN(F10:J13) -> 38 | C34: =MAX(F10:J13) -> 112

Sheet ALP
A1: NOTICE: This document is an example only. It must be revised to reflect your lab’s specific processes and/or specific protocol requirements.
A2: Approved and current. Effective starting 10-Aug-2023. Last reviewed on 10-Aug-2023. RDP 500 (version 1.0). Reference Range Verification (Chemistry)_Example. Page 8 of 10
A3: Reference Interval Analysis
A6: Method being evaluated: | D6: COBAS c311 | I6: Date: | J6: 2023-07-19
B7: Analyte | D7: ALP
A8: Proposed Reference Range: | D8: 40 | E8: to | F8: 129 | H8: Units: | I8: U/L
F10: 100 | G10: 99 | H10: 92 | I10: 59 | J10: 75
F11: 88 | G11: 91 | H11: 94 | I11: 84 | J11: 61
F12: 108 | G12: 77 | H12: 93 | I12: 85 | J12: 91
F13: 112 | G13: 83 | H13: 72 | I13: 70 | J13: 51
A15: =I8 -> U/L | B15: Frequency | C15: %
A16: ="<"&D8 -> <40 | B16: =FREQUENCY(F10:J13,G17:G25) -> 0 | C16: =B16/COUNT($F$10:$J$13) -> 0 | G16: =I8 -> U/L
A17: =D8&"-"&G18 -> 40-57.8 | B17: 1 | C17: =B17/COUNT($F$10:$J$13) -> 0.05 | G17: =D8-0.0001 -> 39.9999 | H17: =F8-D8 -> 89
A18: =G18&"-"&G19 -> 57.8-66.7 | B18: 2 | C18: =B18/COUNT($F$10:$J$13) -> 0.1 | G18: =D8+(0.2*H17) -> 57.8
A19: =G19&"-"&G20 -> 66.7-75.6 | B19: 3 | C19: =B19/COUNT($F$10:$J$13) -> 0.15 | G19: =D8+(0.3*H17) -> 66.7
A20: =G20&"-"&G21 -> 75.6-84.5 | B20: 3 | C20: =B20/COUNT($F$10:$J$13) -> 0.15 | G20: =D8+(0.4*H17) -> 75.6
A21: =G21&"-"&G22 -> 84.5-102.3 | B21: 9 | C21: =B21/COUNT($F$10:$J$13) -> 0.45 | G21: =D8+(0.5*H17) -> 84.5
A22: =G22&"-"&G23 -> 102.3-111.2 | B22: 1 | C22: =B22/COUNT($F$10:$J$13) -> 0.05 | G22: =D8+(0.7*H17) -> 102.3
A23: =G23&"-"&G24 -> 111.2-120.1 | B23: 1 | C23: =B23/COUNT($F$10:$J$13) -> 0.05 | G23: =D8+(0.8*H17) -> 111.2
A24: =G24&"-"&G25 -> 120.1-129 | B24: 0 | C24: =B24/COUNT($F$10:$J$13) -> 0 | G24: =D8+(0.9*H17) -> 120.1
A25: =">"&G25 -> >129 | B25: 0 | C25: =B25/COUNT($F$10:$J$13) -> 0 | G25: =F8 -> 129
A27: Mean: | B27: =AVERAGE(F10:J13) -> 84.25
A28: SD: | B28: =STDEV(F10:J13) -> 16.08161749
A29: Median: | B29: =MEDIAN(F10:J13) -> 86.5
A30: Range: | B30: =B34&"-"&C34 -> 51-112
A31: Obs Outside: | B31: =C16+C25 -> 0
A32: Grade: | B32: =IF(C16+C25>0.1,"Unacceptable","Acceptable") -> Acceptable
B34: =MIN(F10:J13) -> 51 | C34: =MAX(F10:J13) -> 112

Sheet CO2
A1: NOTICE: This document is an example only. It must be revised to reflect your lab’s specific processes and/or specific protocol requirements.
A2: Approved and current. Effective starting 10-Aug-2023. Last reviewed on 10-Aug-2023. RDP 500 (version 1.0). Reference Range Verification (Chemistry)_Example. Page 9 of 10
A3: Reference Interval Analysis
A6: Method being evaluated: | D6: COBAS c311 | I6: Date: | J6: 2023-07-19
B7: Analyte | D7: CO2-L
A8: Proposed Reference Range: | D8: 22 | E8: to | F8: 34 | H8: Units: | I8: mmol/l
F10: 26.4 | G10: 27.4 | H10: 30 | I10: 23.4 | J10: 25.8
F11: 24.3 | G11: 27.2 | H11: 31.1 | I11: 24.6 | J11: 24
F12: 26.4 | G12: 27.2 | H12: 28.9 | I12: 27.2 | J12: 27.7
F13: 26.9 | G13: 26.9 | H13: 25.5 | I13: 26 | J13: 26.4
A15: =I8 -> mmol/l | B15: Frequency | C15: %
A16: ="<"&D8 -> <22 | B16: =FREQUENCY(F10:J13,G17:G25) -> 0 | C16: =B16/COUNT($F$10:$J$13) -> 0 | G16: =I8 -> mmol/l
A17: =D8&"-"&G18 -> 22-24.4 | B17: 3 | C17: =B17/COUNT($F$10:$J$13) -> 0.15 | G17: =D8-0.0001 -> 21.9999 | H17: =F8-D8 -> 12
A18: =G18&"-"&G19 -> 24.4-25.6 | B18: 2 | C18: =B18/COUNT($F$10:$J$13) -> 0.1 | G18: =D8+(0.2*H17) -> 24.4
A19: =G19&"-"&G20 -> 25.6-26.8 | B19: 5 | C19: =B19/COUNT($F$10:$J$13) -> 0.25 | G19: =D8+(0.3*H17) -> 25.6
A20: =G20&"-"&G21 -> 26.8-28 | B20: 7 | C20: =B20/COUNT($F$10:$J$13) -> 0.35 | G20: =D8+(0.4*H17) -> 26.8
A21: =G21&"-"&G22 -> 28-30.4 | B21: 2 | C21: =B21/COUNT($F$10:$J$13) -> 0.1 | G21: =D8+(0.5*H17) -> 28
A22: =G22&"-"&G23 -> 30.4-31.6 | B22: 1 | C22: =B22/COUNT($F$10:$J$13) -> 0.05 | G22: =D8+(0.7*H17) -> 30.4
A23: =G23&"-"&G24 -> 31.6-32.8 | B23: 0 | C23: =B23/COUNT($F$10:$J$13) -> 0 | G23: =D8+(0.8*H17) -> 31.6
A24: =G24&"-"&G25 -> 32.8-34 | B24: 0 | C24: =B24/COUNT($F$10:$J$13) -> 0 | G24: =D8+(0.9*H17) -> 32.8
A25: =">"&G25 -> >34 | B25: 0 | C25: =B25/COUNT($F$10:$J$13) -> 0 | G25: =F8 -> 34
A27: Mean: | B27: =AVERAGE(F10:J13) -> 26.665
A28: SD: | B28: =STDEV(F10:J13) -> 1.90215252
A29: Median: | B29: =MEDIAN(F10:J13) -> 26.65
A30: Range: | B30: =B34&"-"&C34 -> 23.4-31.1
A31: Obs Outside: | B31: =C16+C25 -> 0
A32: Grade: | B32: =IF(C16+C25>0.1,"Unacceptable","Acceptable") -> Acceptable
B34: =MIN(F10:J13) -> 23.4 | C34: =MAX(F10:J13) -> 31.1

Sheet BUN
A1: NOTICE: This document is an example only. It must be revised to reflect your lab’s specific processes and/or specific protocol requirements.
A2: Approved and current. Effective starting 10-Aug-2023. Last reviewed on 10-Aug-2023. RDP 500 (version 1.0). Reference Range Verification (Chemistry)_Example. Page 10 of 10
A3: Reference Interval Analysis
A6: Method being evaluated: | D6: COBAS c311 | I6: Date: | J6: 2023-07-19
B7: Analyte | D7: BUN
A8: Proposed Reference Range: | D8: 7 | E8: to | F8: 19 | H8: Units: | I8: mg/dl
F10: 12 | G10: 13 | H10: 11 | I10: 9 | J10: 19
F11: 13 | G11: 11 | H11: 10 | I11: 7 | J11: 8
F12: 10 | G12: 13 | H12: 10 | I12: 8 | J12: 12
F13: 17 | G13: 13 | H13: 8 | I13: 7 | J13: 9
A15: =I8 -> mg/dl | B15: Frequency | C15: %
A16: ="<"&D8 -> <7 | B16: =FREQUENCY(F10:J13,G17:G25) -> 0 | C16: =B16/COUNT($F$10:$J$13) -> 0 | G16: =I8 -> mg/dl
A17: =D8&"-"&G18 -> 7-9.4 | B17: 7 | C17: =B17/COUNT($F$10:$J$13) -> 0.35 | G17: =D8-0.0001 -> 6.9999 | H17: =F8-D8 -> 12
A18: =G18&"-"&G19 -> 9.4-10.6 | B18: 3 | C18: =B18/COUNT($F$10:$J$13) -> 0.15 | G18: =D8+(0.2*H17) -> 9.4
A19: =G19&"-"&G20 -> 10.6-11.8 | B19: 2 | C19: =B19/COUNT($F$10:$J$13) -> 0.1 | G19: =D8+(0.3*H17) -> 10.6
A20: =G20&"-"&G21 -> 11.8-13 | B20: 6 | C20: =B20/COUNT($F$10:$J$13) -> 0.3 | G20: =D8+(0.4*H17) -> 11.8
A21: =G21&"-"&G22 -> 13-15.4 | B21: 0 | C21: =B21/COUNT($F$10:$J$13) -> 0 | G21: =D8+(0.5*H17) -> 13
A22: =G22&"-"&G23 -> 15.4-16.6 | B22: 0 | C22: =B22/COUNT($F$10:$J$13) -> 0 | G22: =D8+(0.7*H17) -> 15.4
A23: =G23&"-"&G24 -> 16.6-17.8 | B23: 1 | C23: =B23/COUNT($F$10:$J$13) -> 0.05 | G23: =D8+(0.8*H17) -> 16.6
A24: =G24&"-"&G25 -> 17.8-19 | B24: 1 | C24: =B24/COUNT($F$10:$J$13) -> 0.05 | G24: =D8+(0.9*H17) -> 17.8
A25: =">"&G25 -> >19 | B25: 0 | C25: =B25/COUNT($F$10:$J$13) -> 0 | G25: =F8 -> 19
A27: Mean: | B27: =AVERAGE(F10:J13) -> 11
A28: SD: | B28: =STDEV(F10:J13) -> 3.145590063
A29: Median: | B29: =MEDIAN(F10:J13) -> 10.5
A30: Range: | B30: =B34&"-"&C34 -> 7-19
A31: Obs Outside: | B31: =C16+C25 -> 0
A32: Grade: | B32: =IF(C16+C25>0.1,"Unacceptable","Acceptable") -> Acceptable
B34: =MIN(F10:J13) -> 7 | C34: =MAX(F10:J13) -> 19
